[Event "Early-Titled-Tuesday-Blitz-February-13-2024"]
[Site "Chess.com"]
[Date "2024.02.13"]
[Round "8"]
[White "Witty_Alien"]
[Black "tusplingher"]
[Result "0-1"]
[WhiteElo "2305"]
[BlackElo "2465"]
[TimeControl "180+1"]
[EndTime "9:32:31 PST"]
[Termination "tusplingher won by resignation"]

1. e4 {[%clk 0:03:00.9]} 1... c5 {[%clk 0:02:59.2]} 2. Nf3 {[%clk 0:02:58.4]}
2... d6 {[%clk 0:02:59.2]} 3. d4 {[%clk 0:02:59]} 3... cxd4 {[%clk 0:02:58.9]}
4. c3 {[%clk 0:02:59.6]} 4... Nf6 {[%clk 0:02:56.7]} 5. Bd3 {[%clk 0:02:58.2]}
5... dxc3 {[%clk 0:02:57.1]} 6. O-O {[%clk 0:02:58.4]} 6... Nc6 {[%clk
0:02:56.9]} 7. Re1 {[%clk 0:02:56.6]} 7... g6 {[%clk 0:02:51.2]} 8. Nxc3 {[%clk
0:02:55.5]} 8... Bg7 {[%clk 0:02:51.5]} 9. Bg5 {[%clk 0:02:56.3]} 9... O-O
{[%clk 0:02:51.6]} 10. Rc1 {[%clk 0:02:55.4]} 10... Bg4 {[%clk 0:02:50.7]} 11.
Qd2 {[%clk 0:02:42.4]} 11... Rc8 {[%clk 0:02:43.2]} 12. Qf4 {[%clk 0:02:39.7]}
12... Bxf3 {[%clk 0:02:42.3]} 13. Qxf3 {[%clk 0:02:38.8]} 13... Ne5 {[%clk
0:02:42.1]} 14. Qh3 {[%clk 0:02:37.9]} 14... Nxd3 {[%clk 0:02:40.7]} 15. Qxd3
{[%clk 0:02:37.2]} 15... Qb6 {[%clk 0:02:37.6]} 16. Bxf6 {[%clk 0:02:28.9]}
16... Bxf6 {[%clk 0:02:36.6]} 17. Nd5 {[%clk 0:02:28.3]} 17... Rxc1 {[%clk
0:02:19.9]} 18. Rxc1 {[%clk 0:02:25.3]} 18... Qxb2 {[%clk 0:02:16.1]} 19. Rb1
{[%clk 0:02:19.7]} 19... Qd4 {[%clk 0:02:10]} 20. Nxe7+ {[%clk 0:02:18.2]} 20...
Kg7 {[%clk 0:02:09.7]} 21. Qxd4 {[%clk 0:02:16.5]} 21... Bxd4 {[%clk 0:02:07.6]}
22. Rxb7 {[%clk 0:02:16.1]} 22... Kf6 {[%clk 0:01:56]} 23. Nd5+ {[%clk
0:02:11.4]} 23... Kg5 {[%clk 0:01:49.7]} 24. Kf1 {[%clk 0:01:26.3]} 24... f5
{[%clk 0:01:42.4]} 25. f4+ {[%clk 0:01:13.2]} 25... Kh6 {[%clk 0:01:36.9]} 26.
e5 {[%clk 0:01:01.1]} 26... dxe5 {[%clk 0:01:32.3]} 27. fxe5 {[%clk 0:01:01.4]}
27... Bxe5 {[%clk 0:01:26.9]} 28. Rxa7 {[%clk 0:00:57.1]} 28... Bxh2 {[%clk
0:01:25.4]} 29. a4 {[%clk 0:00:57.1]} 29... Be5 {[%clk 0:01:21.9]} 30. a5 {[%clk
0:00:56.2]} 30... Rd8 {[%clk 0:01:21.4]} 31. Ne7 {[%clk 0:00:50.9]} 31... Rd2
{[%clk 0:01:07.2]} 32. Ng8+ {[%clk 0:00:45.3]} 32... Kg5 {[%clk 0:01:07.1]} 33.
Rxh7 {[%clk 0:00:46.2]} 33... Bd4 {[%clk 0:01:07.2]} 34. Rd7 {[%clk 0:00:40.3]}
34... Kf4 {[%clk 0:01:03.1]} 35. Ne7 {[%clk 0:00:20.4]} 35... Ke3 {[%clk
0:00:49.8]} 36. Nd5+ {[%clk 0:00:18.2]} 36... Kd3 {[%clk 0:00:42]} 37. Nf4+
{[%clk 0:00:17.8]} 37... Ke4 {[%clk 0:00:41.7]} 38. Nxg6 {[%clk 0:00:15.5]}
38... Rf2+ {[%clk 0:00:39.2]} 39. Kg1 {[%clk 0:00:07.3]} 39... Rd2+ {[%clk
0:00:27.7]} 40. Kh2 {[%clk 0:00:05.1]} 40... Bg1+ {[%clk 0:00:26]} 41. Kxg1
{[%clk 0:00:02.5]} 41... Rxd7 {[%clk 0:00:26.9]} 42. Nh4 {[%clk 0:00:01.7]}
42... Ra7 {[%clk 0:00:23.9]} 43. Nf3 {[%clk 0:00:02.1]} 43... Rxa5 {[%clk
0:00:23.8]} 44. Kh2 {[%clk 0:00:02.3]} 44... Kf4 {[%clk 0:00:21.6]} 45. Kh3
{[%clk 0:00:01.7]} 45... Ra8 {[%clk 0:00:21]} 46. g3+ {[%clk 0:00:02.1]} 46...
Kxf3 {[%clk 0:00:21.2]} 0-1

[Event "Early-Titled-Tuesday-Blitz-February-13-2024"]
[Site "Chess.com"]
[Date "2024.02.13"]
[Round "8"]
[White "Hui_Li_Macau"]
[Black "Kunalm64"]
[Result "0-1"]
[WhiteElo "2356"]
[BlackElo "2518"]
[TimeControl "180+1"]
[EndTime "9:32:32 PST"]
[Termination "Kunalm64 won by resignation"]

1. e4 {[%clk 0:02:52.9]} 1... c6 {[%clk 0:02:59.7]} 2. d4 {[%clk 0:02:52.9]}
2... d5 {[%clk 0:03:00.4]} 3. Nd2 {[%clk 0:02:52.8]} 3... dxe4 {[%clk 0:03:00]}
4. Nxe4 {[%clk 0:02:53.7]} 4... Nf6 {[%clk 0:03:00.5]} 5. Nxf6+ {[%clk
0:02:54.1]} 5... exf6 {[%clk 0:03:01.4]} 6. c3 {[%clk 0:02:54.8]} 6... Bd6
{[%clk 0:03:01.9]} 7. Bd3 {[%clk 0:02:54.1]} 7... O-O {[%clk 0:03:02]} 8. Qc2
{[%clk 0:02:54.5]} 8... Re8+ {[%clk 0:03:02.2]} 9. Ne2 {[%clk 0:02:54.8]} 9...
h6 {[%clk 0:03:02.4]} 10. O-O {[%clk 0:02:54.6]} 10... Nd7 {[%clk 0:03:02.1]}
11. Bf4 {[%clk 0:02:55]} 11... Nf8 {[%clk 0:03:02.1]} 12. Bxd6 {[%clk
0:02:54.9]} 12... Qxd6 {[%clk 0:03:01.9]} 13. Rfe1 {[%clk 0:02:55.4]} 13... Bd7
{[%clk 0:02:58.8]} 14. Ng3 {[%clk 0:02:55.5]} 14... Rxe1+ {[%clk 0:02:52.4]} 15.
Rxe1 {[%clk 0:02:54.6]} 15... Re8 {[%clk 0:02:53]} 16. Rxe8 {[%clk 0:02:54.4]}
16... Bxe8 {[%clk 0:02:53.4]} 17. Qe2 {[%clk 0:02:37.7]} 17... Qe6 {[%clk
0:02:50.2]} 18. Qxe6 {[%clk 0:02:25]} 18... fxe6 {[%clk 0:02:49.7]} 19. Kf1
{[%clk 0:02:05.9]} 19... Kf7 {[%clk 0:02:49.2]} 20. Ke2 {[%clk 0:02:03]} 20...
Ke7 {[%clk 0:02:49]} 21. Kd2 {[%clk 0:02:00.5]} 21... g5 {[%clk 0:02:46.9]} 22.
Ne4 {[%clk 0:01:56.2]} 22... b6 {[%clk 0:02:44.8]} 23. Ke3 {[%clk 0:01:47.5]}
23... Ng6 {[%clk 0:02:41.5]} 24. g3 {[%clk 0:01:47]} 24... Nf8 {[%clk
0:02:38.3]} 25. f4 {[%clk 0:01:44.1]} 25... Bg6 {[%clk 0:02:22.5]} 26. Nf2
{[%clk 0:01:30.8]} 26... Bxd3 {[%clk 0:02:15.7]} 27. Nxd3 {[%clk 0:01:29.6]}
27... g4 {[%clk 0:02:09.4]} 28. c4 {[%clk 0:01:26.7]} 28... Kd6 {[%clk
0:02:09.1]} 29. Ke4 {[%clk 0:01:25.4]} 29... f5+ {[%clk 0:01:59.4]} 30. Ke3
{[%clk 0:01:24.9]} 30... Nd7 {[%clk 0:01:59]} 31. b3 {[%clk 0:00:57.8]} 31... c5
{[%clk 0:01:49.8]} 32. a3 {[%clk 0:00:53.1]} 32... a5 {[%clk 0:01:29.5]} 33. b4
{[%clk 0:00:43.8]} 33... cxb4 {[%clk 0:01:25.4]} 34. axb4 {[%clk 0:00:44.7]}
34... a4 {[%clk 0:01:25.1]} 35. Kd2 {[%clk 0:00:40.7]} 35... b5 {[%clk
0:01:24.5]} 36. cxb5 {[%clk 0:00:30.7]} 36... Kd5 {[%clk 0:01:23]} 37. Kc3
{[%clk 0:00:29.8]} 37... Nb6 {[%clk 0:01:22.8]} 38. Nc5 {[%clk 0:00:16.8]} 38...
h5 {[%clk 0:01:21.7]} 39. Nd3 {[%clk 0:00:10.5]} 39... a3 {[%clk 0:01:18.6]} 40.
Nc5 {[%clk 0:00:10.8]} 40... a2 {[%clk 0:01:07.4]} 41. Kb2 {[%clk 0:00:11]}
41... Kxd4 {[%clk 0:01:06.7]} 42. Nxe6+ {[%clk 0:00:10.9]} 42... Ke3 {[%clk
0:01:06.7]} 43. Ng7 {[%clk 0:00:10.3]} 43... Kf2 {[%clk 0:00:59.3]} 44. Nxf5
{[%clk 0:00:09.3]} 44... Kg2 {[%clk 0:00:59.4]} 45. Ng7 {[%clk 0:00:09.5]} 45...
h4 {[%clk 0:00:58.7]} 46. f5 {[%clk 0:00:06.3]} 46... Kxh2 {[%clk 0:00:57.8]}
47. f6 {[%clk 0:00:05.2]} 47... hxg3 {[%clk 0:00:56.8]} 48. f7 {[%clk
0:00:05.2]} 48... Nd7 {[%clk 0:00:57]} 49. b6 {[%clk 0:00:02.7]} 49... g2 {[%clk
0:00:57.2]} 50. b7 {[%clk 0:00:01.7]} 50... a1=Q+ {[%clk 0:00:54.7]} 51. Kxa1
{[%clk 0:00:02.6]} 51... g1=Q+ {[%clk 0:00:54.7]} 52. Kb2 {[%clk 0:00:03.5]}
52... Qd4+ {[%clk 0:00:53]} 53. Kb3 {[%clk 0:00:03.3]} 53... Qxg7 {[%clk
0:00:53.5]} 0-1

[Event "Early-Titled-Tuesday-Blitz-February-13-2024"]
[Site "Chess.com"]
[Date "2024.02.13"]
[Round "8"]
[White "PushingpawnsNYC"]
[Black "secrethawk1"]
[Result "0-1"]
[WhiteElo "2329"]
[BlackElo "2483"]
[TimeControl "180+1"]
[EndTime "9:32:34 PST"]
[Termination "secrethawk1 won by checkmate"]

1. e4 {[%clk 0:02:59.4]} 1... c5 {[%clk 0:02:57.3]} 2. Nc3 {[%clk 0:02:59]} 2...
e6 {[%clk 0:02:56.9]} 3. g3 {[%clk 0:02:48.2]} 3... d5 {[%clk 0:02:49.1]} 4. Bg2
{[%clk 0:02:46.9]} 4... d4 {[%clk 0:02:45.4]} 5. Nb1 {[%clk 0:02:43.7]} 5... e5
{[%clk 0:02:43.7]} 6. d3 {[%clk 0:02:39.5]} 6... h5 {[%clk 0:02:40.1]} 7. Nf3
{[%clk 0:02:39.5]} 7... Nc6 {[%clk 0:02:36.7]} 8. h4 {[%clk 0:02:34.4]} 8... Be6
{[%clk 0:02:34.2]} 9. a4 {[%clk 0:02:27.9]} 9... Bd6 {[%clk 0:02:20.5]} 10. Ng5
{[%clk 0:02:27.1]} 10... Bd7 {[%clk 0:02:14.5]} 11. c3 {[%clk 0:02:26.7]} 11...
Nf6 {[%clk 0:02:08]} 12. Qb3 {[%clk 0:02:19.3]} 12... O-O {[%clk 0:02:05.6]} 13.
O-O {[%clk 0:02:13.8]} 13... Rb8 {[%clk 0:02:00.3]} 14. Nd2 {[%clk 0:01:59.4]}
14... a6 {[%clk 0:01:57.3]} 15. Nc4 {[%clk 0:01:57.1]} 15... Bc7 {[%clk
0:01:56]} 16. Na3 {[%clk 0:01:45]} 16... b5 {[%clk 0:01:54.1]} 17. axb5 {[%clk
0:01:41.4]} 17... axb5 {[%clk 0:01:55]} 18. Qc2 {[%clk 0:01:30.3]} 18... b4
{[%clk 0:01:54.4]} 19. Nc4 {[%clk 0:01:28.6]} 19... bxc3 {[%clk 0:01:50.8]} 20.
bxc3 {[%clk 0:01:27.8]} 20... dxc3 {[%clk 0:01:51.7]} 21. Qxc3 {[%clk 0:01:28]}
21... Nd4 {[%clk 0:01:51.4]} 22. Kh1 {[%clk 0:01:21.7]} 22... Ng4 {[%clk
0:01:38.2]} 23. Be3 {[%clk 0:01:17.6]} 23... Qf6 {[%clk 0:01:07.3]} 24. Bxd4
{[%clk 0:01:13.4]} 24... exd4 {[%clk 0:01:03.1]} 25. Qd2 {[%clk 0:01:12.9]}
25... Rfc8 {[%clk 0:00:38.9]} 26. f4 {[%clk 0:00:52.3]} 26... Rb3 {[%clk
0:00:26.4]} 27. Rab1 {[%clk 0:00:33.2]} 27... Rcb8 {[%clk 0:00:25.9]} 28. Rxb3
{[%clk 0:00:32.2]} 28... Rxb3 {[%clk 0:00:26.8]} 29. Qc2 {[%clk 0:00:32.6]}
29... Rc3 {[%clk 0:00:25.9]} 30. Qd2 {[%clk 0:00:27.5]} 30... Bb5 {[%clk
0:00:19]} 31. e5 {[%clk 0:00:18]} 31... Qa6 {[%clk 0:00:14.5]} 32. Bd5 {[%clk
0:00:14]} 32... Be8 {[%clk 0:00:05.2]} 33. e6 {[%clk 0:00:10.8]} 33... fxe6
{[%clk 0:00:04.9]} 34. Bxe6+ {[%clk 0:00:08.8]} 34... Kf8 {[%clk 0:00:05.3]} 35.
Ne5 {[%clk 0:00:04.6]} 35... Bxe5 {[%clk 0:00:03.8]} 36. fxe5+ {[%clk
0:00:04.9]} 36... Ke7 {[%clk 0:00:03.7]} 37. Bc4 {[%clk 0:00:03.7]} 37... Rxc4
{[%clk 0:00:03.1]} 38. dxc4 {[%clk 0:00:02.6]} 38... Qxc4 {[%clk 0:00:04]} 39.
Qf4 {[%clk 0:00:01.8]} 39... Bc6+ {[%clk 0:00:03.7]} 40. Kg1 {[%clk 0:00:01.1]}
40... Qe2 {[%clk 0:00:02.3]} 41. Qf8+ {[%clk 0:00:01.8]} 41... Kd7 {[%clk
0:00:02.1]} 42. Qf7+ {[%clk 0:00:02.3]} 42... Kc8 {[%clk 0:00:02.1]} 43. Qf4
{[%clk 0:00:02.8]} 43... Qg2# {[%clk 0:00:01.6]} 0-1

[Event "Early-Titled-Tuesday-Blitz-February-13-2024"]
[Site "Chess.com"]
[Date "2024.02.13"]
[Round "8"]
[White "VladimirKramnik"]
[Black "ValentinDragnev"]
[Result "1-0"]
[WhiteElo "2929"]
[BlackElo "2752"]
[TimeControl "180+1"]
[EndTime "9:32:36 PST"]
[Termination "VladimirKramnik won on time"]

1. e4 {[%clk 0:03:00.9]} 1... c6 {[%clk 0:02:49.9]} 2. d4 {[%clk 0:02:59.8]}
2... d5 {[%clk 0:02:50.4]} 3. e5 {[%clk 0:03:00.3]} 3... c5 {[%clk 0:02:50.3]}
4. dxc5 {[%clk 0:02:59.7]} 4... Nc6 {[%clk 0:02:51]} 5. f4 {[%clk 0:02:57.5]}
5... e6 {[%clk 0:02:50.1]} 6. Be3 {[%clk 0:02:55.5]} 6... Nge7 {[%clk
0:02:44.3]} 7. Nf3 {[%clk 0:02:51]} 7... Nf5 {[%clk 0:02:36.2]} 8. Bf2 {[%clk
0:02:45.6]} 8... Be7 {[%clk 0:02:25.7]} 9. Bd3 {[%clk 0:02:38.4]} 9... O-O
{[%clk 0:02:22.5]} 10. O-O {[%clk 0:02:31.7]} 10... f6 {[%clk 0:02:19.8]} 11.
Nbd2 {[%clk 0:02:18.3]} 11... fxe5 {[%clk 0:02:16.6]} 12. fxe5 {[%clk
0:02:17.9]} 12... Bd7 {[%clk 0:02:04.8]} 13. c3 {[%clk 0:02:16.6]} 13... Qc7
{[%clk 0:01:49.5]} 14. Qe2 {[%clk 0:02:14.4]} 14... Rf7 {[%clk 0:01:49.5]} 15.
b4 {[%clk 0:02:04.1]} 15... Raf8 {[%clk 0:01:48.9]} 16. Nb3 {[%clk 0:01:59.1]}
16... g5 {[%clk 0:01:25.5]} 17. Rae1 {[%clk 0:01:37.7]} 17... g4 {[%clk
0:01:21.6]} 18. Nfd4 {[%clk 0:01:37.5]} 18... Nfxd4 {[%clk 0:01:11.4]} 19. Nxd4
{[%clk 0:01:25.4]} 19... Rg7 {[%clk 0:00:48.8]} 20. Nxc6 {[%clk 0:01:08.7]}
20... bxc6 {[%clk 0:00:42.9]} 21. Bd4 {[%clk 0:01:08.9]} 21... Qd8 {[%clk
0:00:32.3]} 22. Rxf8+ {[%clk 0:01:08.3]} 22... Qxf8 {[%clk 0:00:33.2]} 23. Rf1
{[%clk 0:01:08.1]} 23... Qe8 {[%clk 0:00:33.9]} 24. a4 {[%clk 0:01:03.5]} 24...
h5 {[%clk 0:00:30.9]} 25. b5 {[%clk 0:00:54.1]} 25... Qd8 {[%clk 0:00:21.4]} 26.
Qf2 {[%clk 0:00:40.7]} 26... Be8 {[%clk 0:00:21.6]} 27. b6 {[%clk 0:00:34.5]}
27... axb6 {[%clk 0:00:19.1]} 28. cxb6 {[%clk 0:00:34.8]} 28... Rf7 {[%clk
0:00:19.8]} 29. Qe3 {[%clk 0:00:25.5]} 29... Bg5 {[%clk 0:00:19.5]} 30. Qe1
{[%clk 0:00:23.5]} 30... Qe7 {[%clk 0:00:14.7]} 31. Rxf7 {[%clk 0:00:20.3]}
31... Bxf7 {[%clk 0:00:14.9]} 32. Qb1 {[%clk 0:00:19.3]} 32... c5 {[%clk
0:00:05]} 33. b7 {[%clk 0:00:18.3]} 33... cxd4 {[%clk 0:00:05.7]} 34. b8=Q+
{[%clk 0:00:18.3]} 34... Kg7 {[%clk 0:00:06.4]} 35. cxd4 {[%clk 0:00:16.2]}
35... Be3+ {[%clk 0:00:06.9]} 36. Kh1 {[%clk 0:00:16]} 36... g3 {[%clk
0:00:06.5]} 37. Qf1 {[%clk 0:00:14.4]} 37... Bf2 {[%clk 0:00:05]} 38. hxg3
{[%clk 0:00:14.2]} 38... Bxd4 {[%clk 0:00:01]} 39. Qf6+ {[%clk 0:00:13.5]} 1-0

[Event "Early-Titled-Tuesday-Blitz-February-13-2024"]
[Site "Chess.com"]
[Date "2024.02.13"]
[Round "8"]
[White "mbojan"]
[Black "Yurovskykh_Oleksandr"]
[Result "1-0"]
[WhiteElo "2871"]
[BlackElo "2661"]
[TimeControl "180+1"]
[EndTime "9:32:37 PST"]
[Termination "mbojan won by checkmate"]

1. d4 {[%clk 0:03:00.9]} 1... d5 {[%clk 0:02:57.6]} 2. c4 {[%clk 0:03:00.6]}
2... dxc4 {[%clk 0:02:57.4]} 3. Nf3 {[%clk 0:03:00.5]} 3... Nf6 {[%clk
0:02:55.4]} 4. e3 {[%clk 0:03:00.7]} 4... e6 {[%clk 0:02:54.3]} 5. Bxc4 {[%clk
0:03:00.6]} 5... c5 {[%clk 0:02:52.8]} 6. O-O {[%clk 0:03:00.4]} 6... Nc6 {[%clk
0:02:51.5]} 7. dxc5 {[%clk 0:02:55.3]} 7... Bxc5 {[%clk 0:02:47.8]} 8. Qxd8+
{[%clk 0:02:41.4]} 8... Kxd8 {[%clk 0:02:48.7]} 9. Nc3 {[%clk 0:02:41.2]} 9...
Ke7 {[%clk 0:02:46.3]} 10. Be2 {[%clk 0:02:30.8]} 10... b6 {[%clk 0:02:33.9]}
11. Nd2 {[%clk 0:02:24.3]} 11... Bb7 {[%clk 0:02:33.3]} 12. Nb3 {[%clk
0:02:24.7]} 12... Bd6 {[%clk 0:02:32.6]} 13. Nb5 {[%clk 0:02:25]} 13... Bb8
{[%clk 0:02:25.2]} 14. Bd2 {[%clk 0:02:24.4]} 14... a6 {[%clk 0:02:22.6]} 15.
N5d4 {[%clk 0:02:24.9]} 15... Nxd4 {[%clk 0:02:20.3]} 16. Nxd4 {[%clk
0:02:25.8]} 16... Bd6 {[%clk 0:02:20.6]} 17. Rfc1 {[%clk 0:02:23.4]} 17... Rhc8
{[%clk 0:02:18.7]} 18. f3 {[%clk 0:02:23.2]} 18... Rxc1+ {[%clk 0:02:13.5]} 19.
Rxc1 {[%clk 0:02:24.1]} 19... Rc8 {[%clk 0:02:13.8]} 20. Rxc8 {[%clk 0:02:19.8]}
20... Bxc8 {[%clk 0:02:14.7]} 21. Kf1 {[%clk 0:02:19.7]} 21... Bxh2 {[%clk
0:01:52.6]} 22. f4 {[%clk 0:02:19.8]} 22... Bb7 {[%clk 0:01:40.6]} 23. Be1
{[%clk 0:01:39.4]} 23... Ne4 {[%clk 0:01:33.7]} 24. Bf3 {[%clk 0:01:37.7]} 24...
h6 {[%clk 0:01:06.7]} 25. Bxe4 {[%clk 0:01:17]} 25... Bxe4 {[%clk 0:01:05.6]}
26. Nf3 {[%clk 0:01:17.6]} 26... Bxf3 {[%clk 0:00:57.7]} 27. gxf3 {[%clk
0:01:18.5]} 27... g5 {[%clk 0:00:57.8]} 28. Kg2 {[%clk 0:01:17.7]} 28... Bxf4
{[%clk 0:00:52.7]} 29. exf4 {[%clk 0:01:17.7]} 29... gxf4 {[%clk 0:00:53.6]} 30.
Kh3 {[%clk 0:01:04]} 30... f5 {[%clk 0:00:42.2]} 31. Kh4 {[%clk 0:00:49.5]}
31... e5 {[%clk 0:00:36.1]} 32. Kh5 {[%clk 0:00:49.7]} 32... e4 {[%clk
0:00:34.3]} 33. Kxh6 {[%clk 0:00:50.2]} 33... Ke6 {[%clk 0:00:21.4]} 34. Kg5
{[%clk 0:00:48.6]} 34... Ke5 {[%clk 0:00:17.4]} 35. Bc3+ {[%clk 0:00:46]} 35...
Kd5 {[%clk 0:00:17.7]} 36. Kxf4 {[%clk 0:00:46.7]} 36... exf3 {[%clk 0:00:18.3]}
37. Kxf3 {[%clk 0:00:47.6]} 37... Kc4 {[%clk 0:00:19]} 38. Ke3 {[%clk
0:00:40.2]} 38... b5 {[%clk 0:00:17.4]} 39. a3 {[%clk 0:00:31.3]} 39... Kb3
{[%clk 0:00:16.4]} 40. Kf4 {[%clk 0:00:24.4]} 40... a5 {[%clk 0:00:15.2]} 41.
Kxf5 {[%clk 0:00:25]} 41... b4 {[%clk 0:00:06.3]} 42. axb4 {[%clk 0:00:24.8]}
42... axb4 {[%clk 0:00:07.2]} 43. Bd4 {[%clk 0:00:22.8]} 43... Kc4 {[%clk
0:00:07.9]} 44. Ke4 {[%clk 0:00:23]} 44... b3 {[%clk 0:00:02.3]} 45. Ke3 {[%clk
0:00:23.1]} 45... Kb4 {[%clk 0:00:02.6]} 46. Kd3 {[%clk 0:00:24]} 46... Kb5
{[%clk 0:00:02.4]} 47. Kc3 {[%clk 0:00:24.3]} 47... Ka4 {[%clk 0:00:03]} 48. Kc4
{[%clk 0:00:24.7]} 48... Ka5 {[%clk 0:00:03.3]} 49. Kxb3 {[%clk 0:00:25.3]}
49... Kb5 {[%clk 0:00:04.2]} 50. Kc3 {[%clk 0:00:25.9]} 50... Kc6 {[%clk
0:00:04.8]} 51. Kc4 {[%clk 0:00:26.2]} 51... Kb7 {[%clk 0:00:05.7]} 52. b4
{[%clk 0:00:26.8]} 52... Kc6 {[%clk 0:00:06.6]} 53. b5+ {[%clk 0:00:27.2]} 53...
Kb7 {[%clk 0:00:07.5]} 54. Kc5 {[%clk 0:00:27.8]} 54... Kc7 {[%clk 0:00:08.4]}
55. b6+ {[%clk 0:00:28.3]} 55... Kb7 {[%clk 0:00:09.3]} 56. Kb5 {[%clk
0:00:28.8]} 56... Kb8 {[%clk 0:00:09.7]} 57. Kc6 {[%clk 0:00:29.4]} 57... Ka8
{[%clk 0:00:10.4]} 58. b7+ {[%clk 0:00:29.5]} 58... Kb8 {[%clk 0:00:11.3]} 59.
Be5+ {[%clk 0:00:30.2]} 59... Ka7 {[%clk 0:00:12.2]} 60. b8=Q+ {[%clk
0:00:30.9]} 60... Ka6 {[%clk 0:00:12.8]} 61. Qb6# {[%clk 0:00:31.8]} 1-0

[Event "Early-Titled-Tuesday-Blitz-February-13-2024"]
[Site "Chess.com"]
[Date "2024.02.13"]
[Round "8"]
[White "MaxLeto"]
[Black "TregubovP"]
[Result "1-0"]
[WhiteElo "2539"]
[BlackElo "2676"]
[TimeControl "180+1"]
[EndTime "9:32:38 PST"]
[Termination "MaxLeto won by resignation"]

1. g4 {[%clk 0:02:54.6]} 1... d5 {[%clk 0:02:57.7]} 2. Bg2 {[%clk 0:02:54.9]}
2... c6 {[%clk 0:02:58.1]} 3. h3 {[%clk 0:02:54.5]} 3... e5 {[%clk 0:02:58]} 4.
d4 {[%clk 0:02:54.6]} 4... Nd7 {[%clk 0:02:53.8]} 5. c4 {[%clk 0:02:43.7]} 5...
Bb4+ {[%clk 0:02:49.2]} 6. Nc3 {[%clk 0:02:43.1]} 6... Ne7 {[%clk 0:02:45.1]} 7.
cxd5 {[%clk 0:02:37.1]} 7... Nxd5 {[%clk 0:02:43.2]} 8. Bd2 {[%clk 0:02:34.8]}
8... Nf4 {[%clk 0:02:29.2]} 9. Bxf4 {[%clk 0:02:21.1]} 9... exf4 {[%clk
0:02:28.9]} 10. Qb3 {[%clk 0:01:52.6]} 10... Qa5 {[%clk 0:02:14.3]} 11. Nf3
{[%clk 0:01:49.6]} 11... Nf6 {[%clk 0:02:10.7]} 12. Ne5 {[%clk 0:01:26.2]} 12...
O-O {[%clk 0:02:01.6]} 13. Nd3 {[%clk 0:01:17.6]} 13... Be7 {[%clk 0:01:51]} 14.
Nxf4 {[%clk 0:01:11.6]} 14... Bd6 {[%clk 0:01:46.7]} 15. Nd3 {[%clk 0:01:08.7]}
15... Re8 {[%clk 0:01:44]} 16. O-O {[%clk 0:01:05]} 16... h5 {[%clk 0:01:35.2]}
17. e4 {[%clk 0:00:41]} 17... hxg4 {[%clk 0:01:30.5]} 18. e5 {[%clk 0:00:40.9]}
18... gxh3 {[%clk 0:01:30.7]} 19. Bf3 {[%clk 0:00:41]} 19... Bc7 {[%clk
0:01:16.9]} 20. Kh1 {[%clk 0:00:11.3]} 20... Be6 {[%clk 0:01:04.4]} 21. Qxb7
{[%clk 0:00:08.5]} 21... Nd5 {[%clk 0:01:02.7]} 22. Qxc6 {[%clk 0:00:06.7]}
22... Nxc3 {[%clk 0:00:48.2]} 23. Qxc3 {[%clk 0:00:07]} 23... Qb5 {[%clk
0:00:44.1]} 24. a4 {[%clk 0:00:05.8]} 24... Qc4 {[%clk 0:00:17.6]} 25. Rfc1
{[%clk 0:00:02.6]} 25... Qxc3 {[%clk 0:00:17.5]} 26. Rxc3 {[%clk 0:00:03.5]}
26... Ba5 {[%clk 0:00:17.3]} 27. Bxa8 {[%clk 0:00:03.5]} 27... Bxc3 {[%clk
0:00:16.8]} 28. bxc3 {[%clk 0:00:04.4]} 28... Rxa8 {[%clk 0:00:14.8]} 29. Nc5
{[%clk 0:00:04.1]} 29... Bd5+ {[%clk 0:00:12.3]} 30. Kh2 {[%clk 0:00:04.5]}
30... Rb8 {[%clk 0:00:12]} 31. Kxh3 {[%clk 0:00:05]} 31... Rb2 {[%clk
0:00:12.5]} 32. Kg3 {[%clk 0:00:04.9]} 32... Rc2 {[%clk 0:00:12.4]} 33. Ra3
{[%clk 0:00:05.3]} 33... g5 {[%clk 0:00:12.2]} 34. a5 {[%clk 0:00:05.4]} 34...
Kg7 {[%clk 0:00:12.3]} 35. a6 {[%clk 0:00:05.9]} 35... Kg6 {[%clk 0:00:12.7]}
36. f4 {[%clk 0:00:03.1]} 36... gxf4+ {[%clk 0:00:10.6]} 37. Kxf4 {[%clk
0:00:04]} 37... Rf2+ {[%clk 0:00:10.4]} 38. Ke3 {[%clk 0:00:04.2]} 38... Rf3+
{[%clk 0:00:11]} 39. Ke2 {[%clk 0:00:04.7]} 39... Kf5 {[%clk 0:00:11.7]} 40. c4
{[%clk 0:00:03.1]} 40... Rxa3 {[%clk 0:00:11.2]} 41. cxd5 {[%clk 0:00:03.7]}
41... f6 {[%clk 0:00:09.2]} 42. d6 {[%clk 0:00:03.9]} 42... fxe5 {[%clk
0:00:06.7]} 43. d7 {[%clk 0:00:04.2]} 43... exd4 {[%clk 0:00:06.9]} 44. d8=Q
{[%clk 0:00:04.5]} 44... Re3+ {[%clk 0:00:07.8]} 45. Kd2 {[%clk 0:00:04.4]}
45... Re5 {[%clk 0:00:08.7]} 46. Qxd4 {[%clk 0:00:04.4]} 46... Kf6 {[%clk
0:00:07.6]} 47. Nd3 {[%clk 0:00:04.5]} 1-0